fUST/lending_fUST_20240602
["ID","MTS","AMOUNT","RATE_DAILY","PERIOD"]
[328371216,1717270250365,-3000.0,0.0002185,2]
[328371217,1717270250374,-36421.94876166,0.0002185,3]
[328371895,1717271432302,-24900.0,0.00019216,2]
[328371897,1717271432313,-6053.98114519,0.0001959,2]
[328371899,1717271432323,-1313.24731871,0.0001969,2]
[328371901,1717271432332,-610.88378219,0.000199,2]
[328371903,1717271432341,-172.58972974,0.000199,2]
[328371905,1717271432351,-264.2745662,0.000199,2]
[328371907,1717271432360,-1430.89316227,0.0002,2]
[328371909,1717271432372,-316.23475701,0.0002,2]
[328371954,1717271438232,-250.0,0.00019145,2]
[328371956,1717271438245,-19167.75500113,0.0002,2]
[328371958,1717271438255,-1353.20730432,0.0002,2]
[328371960,1717271438265,-23778.63326276,0.0002,2]
[328371962,1717271438274,-2954.00863669,0.0002,2]
[328371964,1717271438283,-12014.77174184,0.0002,2]
[328371966,1717271438293,-172.58972973,0.00020363,2]
[328371968,1717271438302,-166.1029397,0.000205,2]
[328371970,1717271438312,-172.58972973,0.00020825,2]
[328371972,1717271438321,-264.2745662,0.00020825,2]
[328371974,1717271438331,-610.88378217,0.00020957,2]
[328371976,1717271438340,-3804.16893278,0.00021,2]
[328371978,1717271438349,-172.58972973,0.00021288,2]
[328371980,1717271438358,-470.4,0.00021387,3]
[328371982,1717271438367,-156.8,0.00021397,3]
[328371984,1717271438377,-2070.16185734,0.00021541,2]
[328371986,1717271438386,-894.90499887,0.00021542,2]
[328371988,1717271438395,-4230.52943513,0.00021615,2]
[328371990,1717271438404,-172.58972973,0.0002175,2]
[328371992,1717271438413,-264.2745662,0.0002175,2]
[328371994,1717271438422,-282.0,0.000218,2]
[328371996,1717271438432,-3000.0,0.000218,2]
[328371998,1717271438441,-3000.0,0.0002181,2]
[328372000,1717271438451,-3000.0,0.0002182,2]
[328372002,1717271438461,-500.0,0.00021828,2]
[328372004,1717271438470,-500.0,0.00021828,2]
[328372006,1717271438480,-500.0,0.00021828,2]
[328372007,1717271438489,-500.0,0.00021828,2]
[328372008,1717271438498,-500.0,0.00021828,2]
[328372009,1717271438507,-152.19824277,0.00021828,2]
[328372010,1717271438517,-500.0,0.00021828,2]
[328372011,1717271438526,-407.89967142,0.00021828,2]
[328372012,1717271438536,-500.0,0.00021828,2]
[328372013,1717271438545,-500.0,0.00021828,2]
[328372014,1717271438555,-500.0,0.00021828,2]
[328372015,1717271438564,-431.34956762,0.00021828,2]
[328372016,1717271438573,-500.0,0.00021828,2]
[328372017,1717271438582,-276.54968954,0.00021828,2]
[328372018,1717271438591,-500.0,0.00021828,2]
[328372019,1717271438600,-60430.0,0.0002183,2]
[328372020,1717271438610,-3000.0,0.0002183,2]
[328372022,1717271438619,-3000.0,0.0002184,2]
[328372024,1717271438628,-218.01433145,0.00021848,2]
[328372026,1717271438638,-385.11389544,0.00021849,2]
[328372028,1717271438647,-5151.13613283,0.0002185,7]
[328372030,1717271438658,-3986.07672672,0.0002185,2]
[328372032,1717271438667,-12833.99088915,0.0002185,2]
[328372034,1717271438676,-35316.68788405,0.0002185,2]
[328372203,1717271763316,175.0,0.00027671,120]
[328372204,1717271763362,4.261169,0.00027671,120]
[328372212,1717272509685,2448.39561802,0.00027301,120]
[328372221,1717272582637,5211.76217221,0.00028,120]
[328372261,1717272632452,-542.68894042,0.00018916,2]
[328372263,1717272632462,-42045.61257886,0.00018966,2]
[328372265,1717272632471,-23148.42585298,0.00018967,2]
[328372267,1717272632483,-1751.57414702,0.00018967,2]
[328372269,1717272632492,-201.98645507,0.00019016,2]
[328372272,1717272632502,-105.61939791,0.00019116,2]
[328372274,1717272632514,-1302.0,0.00019116,2]
[328372276,1717272632525,-497.29564426,0.00019116,2]
[328372278,1717272632534,-173.217,0.00019145,2]
[328372280,1717272632543,-152.895,0.00019145,2]
[328372282,1717272632552,-250.0,0.00019145,2]
[328372284,1717272632561,-150.0,0.00019145,2]
[328372286,1717272632570,-154.98450155,0.00020101,2]
[328372288,1717272632579,-1353.20730432,0.00020101,2]
[328372290,1717272632589,-208.83396,0.00020102,2]
[328372292,1717272632598,-167.596119,0.0002026,2]
[328372294,1717272632607,-922.4720001,0.00020756,2]
[328372296,1717272632616,-4230.52943513,0.00021539,2]
[328372298,1717272632625,-592.0,0.000216,2]
[328372300,1717272632634,-236.22852771,0.0002172,2]
[328372302,1717272632643,-236.22852769,0.00021729,2]
[328372304,1717272632652,-163.73354267,0.0002173,2]
[328372306,1717272632661,-236.22852769,0.00021738,2]
[328372308,1717272632671,-236.22852769,0.00021746,2]
[328372310,1717272632679,-144.15311324,0.00021755,2]
[328372313,1717272632691,-92.07541445,0.00021755,2]
[328372315,1717272632700,-282.0,0.000218,2]
[328372317,1717272632709,-3000.0,0.000218,2]
[328372319,1717272632719,-3000.0,0.0002181,2]
[328372321,1717272632728,-3000.0,0.0002182,2]
[328372323,1717272632737,-3000.0,0.0002183,2]
[328372325,1717272632746,-3000.0,0.0002184,2]
[328372327,1717272632758,-674.52,0.0002184,3]
[328372329,1717272632767,-500.0,0.00021847,2]
[328372331,1717272632777,-500.0,0.00021847,2]
[328372333,1717272632786,-279.51353261,0.00021847,2]
[328372335,1717272632796,-500.0,0.00021847,2]
[328372336,1717272632805,-500.0,0.00021847,2]
[328372338,1717272632814,-166.29710767,0.00021847,2]
[328372340,1717272632824,-389.09985918,0.00021847,2]
[328372343,1717272632837,-500.0,0.00021847,2]
[328372345,1717272632847,-500.0,0.00021847,2]
[328372347,1717272632857,-197.46490686,0.00021847,2]
[328372349,1717272632866,-535.85921498,0.00021847,2]
[328372351,1717272632875,-9573.60369169,0.00021848,2]
[328372352,1717272632885,-319.59188939,0.00021848,2]
[328372355,1717272632895,-652.33270289,0.00021848,2]
[328372357,1717272632903,-309.32054695,0.00021848,4]
[328372359,1717272632913,-2404.21274999,0.00021848,2]
[328372361,1717272632922,-1170.82156658,0.00021848,2]
[328372363,1717272632932,-2276.45232108,0.00021848,2]
[328372365,1717272632941,-896.50695997,0.00021848,2]
[328372366,1717272632950,-281.85841065,0.00021848,2]
[328372368,1717272632959,-312.65893706,0.00021848,2]
[328372370,1717272632968,-944.04169807,0.00021848,2]
[328372372,1717272632977,-230.89467572,0.00021848,2]
[328372374,1717272632986,-1362.4666193,0.00021848,2]
[328372376,1717272632995,-523.01612629,0.00021848,2]
[328372379,1717272633005,-276.58092727,0.00021848,2]
[328372381,1717272633014,-157.37250312,0.00021848,2]
[328372383,1717272633023,-1183.59203928,0.00021848,2]
[328372385,1717272633032,-371.8824724,0.00021848,2]
[328372387,1717272633041,-154.98450155,0.00021848,2]
[328372389,1717272633051,-309.86056352,0.00021848,2]
[328372391,1717272633060,-2119.09684866,0.00021848,2]
[328372393,1717272633068,-1847.61310577,0.00021848,2]
[328372395,1717272633077,-2489.2632548,0.00021848,2]
[328372397,1717272633087,-1709.10425204,0.00021848,2]
[328372399,1717272633096,-2070.16185734,0.00021848,2]
[328372401,1717272633104,-194.75660952,0.00021849,2]
[328372403,1717272633114,-2575.56806641,0.0002185,7]
[328372405,1717272633123,-3000.0,0.0002185,2]
[328372407,1717272633132,-87856.80247062,0.0002185,3]
[328372949,1717272638611,-156.95364019,0.00021848,2]
[328372950,1717272638621,-837.99161824,0.0002185,7]
[328373128,1717272641810,-922.59170983,0.0002185,7]
[328373129,1717272641820,-2171.10124548,0.0002185,3]
[328373342,1717272646459,-719.79,0.00021849,2]
[328373344,1717272646471,-400.97463306,0.00021849,2]
[328373346,1717272646480,-155.02881647,0.00021849,2]
[328373348,1717272646490,-7412.22911927,0.00021849,2]
[328373350,1717272646499,-33604.70803121,0.0002185,3]
[328373362,1717272646904,-194510.43949103,0.0002185,3]
[328373363,1717272646914,-796.30806816,0.00021855,2]
[328373364,1717272646923,-3000.0,0.0002186,2]
[328373365,1717272646933,-95282.14902405,0.0002187,3]
[328373366,1717272646945,-65737.84879436,0.0002187,3]
[328373367,1717272659804,22966.00555544,0.00026999,30]
[328373370,1717273376167,216.04709689,9.999e-05,2]
[328373371,1717273386915,2092.91470085,9.999e-05,2]
[328373372,1717273390324,299.93372804,9.999e-05,2]
[328373373,1717273402913,2092.91470085,9.999e-05,2]
[328373374,1717273408223,417.54810121,9.999e-05,2]
[328373375,1717273426996,2092.91470085,9.999e-05,2]
[328373376,1717273442961,1353.17585273,9.999e-05,2]
[328373377,1717273448200,3067.76490554,9.998e-05,2]
[328373414,1717273832650,-2341.66259621,0.000189,2]
[328373421,1717273832716,-1541.71328365,0.000189,2]
[328373423,1717273832725,-24900.0,0.00020019,2]
[328373425,1717273832735,-3036.0668806,0.00020098,2]
[328373427,1717273832744,-208.83396,0.00020119,2]
[328373429,1717273832754,-518.2353902,0.00020459,2]
[328373431,1717273832763,-165.244102,0.00020523,2]
[328373433,1717273832775,-2070.16185734,0.00021,2]
[328373435,1717273832784,-2500.0,0.00021,2]
[328373437,1717273832793,-195.99420654,0.0002171,2]
[328373439,1717273832802,-195.99420653,0.0002177,2]
[328373441,1717273832811,-282.0,0.000218,2]
[328373443,1717273832821,-3000.0,0.000218,2]
[328373445,1717273832830,-12741.84336748,0.00021809,2]
[328373797,1717273838830,-414.26757084,0.00021,2]
[328373799,1717273838840,-30376.71334059,0.00021809,2]
[328373801,1717273838850,-3000.0,0.0002181,2]
[328373802,1717273838859,-3000.0,0.0002182,2]
[328373804,1717273838868,-3000.0,0.0002183,2]
[328373806,1717273838878,-3000.0,0.0002184,2]
[328373808,1717273838888,-13327.24006604,0.00021848,2]
[328373893,1717273842271,-14036.47711615,0.00021848,2]
[328373978,1717273843929,-42968.16528811,0.00021848,2]
[328374007,1717273847024,-581.0,0.00021848,2]
[328374008,1717273847043,-712.0,0.00021848,2]
[328374009,1717273856981,552.10894808,0.00016401,2]
[328374010,1717273876290,299.7786707,9.998e-05,2]
[328374086,1717275041388,-585.73466787,0.00016401,2]
[328374087,1717275041398,-8190.31533213,0.00019275,2]
[328374095,1717275043191,-0.0239359,0.00019275,2]
[328374096,1717275043302,-1705.57197894,0.00019275,2]
[328374098,1717275045958,-2980.23189187,0.000189,2]
[328374099,1717275045968,-303.15711762,0.00019275,2]
[328374107,1717275046233,-4023.047,0.00019275,2]
[328374113,1717275758173,758.91984057,9.999e-05,2]
[328374114,1717275905248,16180.0,0.00027,30]
[328374152,1717276232230,-864.89975766,0.000164,2]
[328374178,1717276238292,-1038.53736853,0.000164,2]
[328374180,1717276238303,-863.26701347,0.00016401,2]
[328374258,1717276243309,-274.85756401,0.00016401,2]
[328374260,1717276243319,-430.7269203,0.00018215,2]
[328374268,1717276246936,-18852.07795609,0.00018215,2]
[328374269,1717276246946,-880.29166403,0.00018216,7]
[328374270,1717276246956,-24900.0,0.00018216,2]
[328374271,1717276246966,-211.23900439,0.00018775,2]
[328374272,1717276246975,-615.12488529,0.00018875,2]
[328374273,1717276246984,-4229.06661595,0.00018953,2]
[328374274,1717276246994,-167.60519,0.00019178,2]
[328374275,1717276247003,-392.25086838,0.00019275,2]
[328374276,1717276247013,-5362.89361562,0.00019897,2]
[328374277,1717276247022,-15619.01640991,0.0002,2]
[328374278,1717276247031,-615.12488528,0.00020078,2]
[328374279,1717276247040,-2233.42999594,0.00021,7]
[328374280,1717276247050,-237.75982481,0.00021,2]
[328374281,1717276247059,-14068.54838405,0.00021,2]
[328374282,1717276247210,-615.12488528,0.00021281,2]
[328374283,1717276247221,-282.0,0.000218,2]
[328374284,1717276247230,-628.81540341,0.000218,2]
[328374285,1717276247239,-3000.0,0.000218,2]
[328374286,1717276247250,-3000.0,0.0002181,2]
[328374287,1717276247260,-3000.0,0.0002182,2]
[328374288,1717276247269,-3000.0,0.0002183,2]
[328374289,1717276247278,-3000.0,0.0002184,2]
[328374290,1717276247288,-35017.25381585,0.00021848,2]
[328374291,1717276247297,-3000.0,0.0002185,2]
[328374292,1717276247307,-3000.0,0.0002186,2]
[328374293,1717276247319,-500.0,0.00021867,2]
[328374294,1717276247329,-500.0,0.00021867,2]
[328374295,1717276247338,-500.0,0.00021867,2]
[328374296,1717276247348,-371.4588237,0.00021867,2]
[328374297,1717276247357,-620.49561761,0.00021867,2]
[328374298,1717276247366,-162.0,0.00021867,2]
[328374299,1717276247376,-500.0,0.00021867,2]
[328374300,1717276247385,-160.5151,0.00021867,2]
[328374301,1717276247394,-416.77972816,0.00021867,2]
[328374302,1717276247403,-498.37514511,0.00021867,2]
[328374303,1717276247412,-500.0,0.00021867,2]
[328374304,1717276247421,-500.0,0.00021867,2]
[328374305,1717276247430,-500.0,0.00021867,2]
[328374306,1717276247439,-500.0,0.00021867,2]
[328374307,1717276247448,-500.0,0.00021867,2]
[328374308,1717276247457,-500.0,0.00021867,2]
[328374309,1717276247466,-500.0,0.00021867,2]
[328374310,1717276247475,-500.0,0.00021867,2]
[328374311,1717276247484,-500.0,0.00021867,2]
[328374312,1717276247493,-500.0,0.00021867,2]
[328374313,1717276247502,-500.0,0.00021867,2]
[328374314,1717276247511,-500.0,0.00021867,2]
[328374315,1717276247520,-439.02246322,0.00021868,2]
[328374316,1717276247529,-7908.04550285,0.00021868,2]
[328374317,1717276247538,-836.90882909,0.00021868,2]
[328374318,1717276247547,-1499.09486295,0.00021868,2]
[328374319,1717276247557,-529.43889661,0.00021868,2]
[328374320,1717276247566,-236.3800481,0.00021868,2]
[328374321,1717276247576,-2906.47604325,0.00021868,2]
[328374322,1717276247585,-156.5464083,0.00021868,2]
[328374323,1717276247595,-514.21922606,0.00021868,2]
[328374324,1717276247605,-283.89725164,0.00021868,2]
[328374325,1717276247614,-523.18795343,0.00021868,2]
[328374326,1717276247623,-237.57694102,0.00021868,2]
[328374327,1717276247632,-4129.12623537,0.00021868,2]
[328374328,1717276247641,-1279.86056259,0.00021868,2]
[328374329,1717276247650,-758.57067042,0.00021868,2]
[328374330,1717276247659,-2648.8713152,0.00021869,2]
[328374342,1717276367042,10527.65958163,9.999e-05,2]
[328374344,1717276436153,160.94171928,9.999e-05,2]
[328374345,1717276502152,12476.56144253,9.999e-05,2]
[328374350,1717276636857,521.15105648,9.999e-05,2]
[328374351,1717276652120,372.03366968,9.999e-05,2]
[328374353,1717276776395,522.35639047,9.999e-05,2]
[328374354,1717276805599,158.82562578,9.999e-05,2]
[328374355,1717276848186,9295.35324241,9.999e-05,2]
[328374356,1717276883470,2092.40673677,9.999e-05,2]
[328374358,1717276903401,2092.40673677,9.999e-05,2]
[328374359,1717276925398,1724.9468979,9.999e-05,2]
[328374360,1717277006214,7211.06896399,9.999e-05,2]
[328374361,1717277023407,697.36236629,9.999e-05,2]
[328374362,1717277024216,5652.1143369,9.999e-05,2]
[328374364,1717277074218,14483.99895244,9.999e-05,2]
[328374365,1717277228295,1315.4253657,9.999e-05,2]
[328374391,1717277432676,-2375.06786853,0.000189,2]
[328374392,1717277432686,-552.75110287,0.00020551,2]
[328374393,1717277432700,-328.26786708,0.00020551,2]
[328374405,1717277439572,-1142.27999999,0.00020551,2]
[328374406,1717277439610,-7656.36628847,0.00020551,2]
[328374407,1717277439622,-7001.50130037,0.00020551,2]
[328374414,1717277442607,-8218.83344122,0.00020551,2]
[328374415,1717277442617,-217.417723,0.00020815,2]
[328374416,1717277442626,-620.44077017,0.00021745,2]
[328374417,1717277442635,-283.0,0.000218,2]
[328374418,1717277442644,-3000.0,0.000218,2]
[328374419,1717277442653,-3000.0,0.0002181,2]
[328374420,1717277442662,-3000.0,0.0002182,2]
[328374421,1717277442672,-3000.0,0.0002183,2]
[328374422,1717277442681,-3000.0,0.0002184,2]
[328374423,1717277442691,-328.26786708,0.00021846,2]
[328374424,1717277442700,-3000.0,0.0002185,2]
[328374425,1717277442709,-185.62,0.00021859,3]
[328374426,1717277442827,-556.9,0.00021859,3]
[328374427,1717277442836,-5499.109766,0.0002186,2]
[328374428,1717277442846,-662.96637566,0.00021867,2]
[328374429,1717277442855,-758.67998318,0.00021867,2]
[328374430,1717277442864,-1498.84404502,0.00021867,2]
[328374431,1717277442873,-351.81778425,0.00021867,2]
[328374432,1717277442883,-371.73127512,0.00021867,2]
[328374433,1717277442892,-261.48805224,0.00021867,2]
[328374434,1717277442901,-302.75750145,0.00021867,2]
[328374435,1717277442911,-691.30437936,0.00021867,2]
[328374436,1717277442919,-1153.52232717,0.00021867,2]
[328374437,1717277442929,-1980.30899949,0.00021867,2]
[328374438,1717277442938,-164.35892009,0.00021867,2]
[328374439,1717277442947,-284.06582614,0.00021867,2]
[328374440,1717277442956,-156.7062527,0.00021867,2]
[328374441,1717277442965,-173.59698165,0.00021867,2]
[328374442,1717277442974,-159.66124321,0.00021867,2]
[328374443,1717277442983,-915.81134441,0.00021867,2]
[328374444,1717277442995,-398.54428941,0.00021867,2]
[328374445,1717277443003,-1901.4974994,0.00021868,2]
[328374446,1717277443012,-1270.43109315,0.00021868,2]
[328374447,1717277443021,-1044.85540851,0.00021868,2]
[328374448,1717277443032,-8375.66634688,0.00021868,2]
[328374449,1717277443041,-392.90559778,0.00021868,2]
[328374450,1717277443050,-500.0,0.00021868,2]
[328374451,1717277443059,-500.0,0.00021868,2]
[328374452,1717277443068,-283.0779,0.00021868,2]
[328374453,1717277443077,-265.92669326,0.00021868,2]
[328374454,1717277443086,-500.0,0.00021868,2]
[328374455,1717277443096,-249.51254354,0.00021868,2]
[328374456,1717277443104,-500.0,0.00021868,2]
[328374457,1717277443113,-380.65616271,0.00021868,2]
[328374458,1717277443123,-500.0,0.00021868,2]
[328374459,1717277443131,-200.0,0.00021868,2]
[328374460,1717277443140,-4070.95850306,0.00021869,7]
[328374461,1717277443149,-155.21159854,0.00021869,2]
[328374462,1717277443158,-12833.99088915,0.00021869,2]
[328374463,1717277443167,-21926.45805964,0.00021869,2]
[328374469,1717277444106,-20541.44572273,0.00021869,2]
[328374475,1717277446583,-4223.55134085,0.00021867,2]
[328374476,1717277446938,-6175.23236033,0.00021867,2]
[328374477,1717277446950,-5253.42656205,0.00021867,2]
[328374478,1717277446968,-1678.98109624,0.00021867,2]
[328374479,1717277446980,-1990.15051238,0.00021867,2]
[328374480,1717277480830,364.55781189,0.00016399,2]
[328374481,1717277507016,154.98450155,9.999e-05,2]
[328374482,1717277531826,154.98450155,9.999e-05,2]
[328374483,1717277532416,488.93915633,9.999e-05,2]
[328374484,1717277540989,154.98450155,9.999e-05,2]
[328374485,1717277546395,154.98450155,9.999e-05,2]
[328374490,1717277770539,3633.2531206,9.999e-05,2]
[328374491,1717277786510,1942.48938734,9.999e-05,2]
[328374493,1717278014556,164.02008532,9.999e-05,2]
[328374496,1717278513090,273.37336231,9.9e-05,2]
[328374497,1717278520316,273.37336231,9.9e-05,2]
[328374498,1717278537370,273.37336231,9.9e-05,2]
[328374537,1717278631925,-522.1732253,0.000164,2]
[328374538,1717278631935,-552.10894808,0.00016401,2]
[328374539,1717278631948,-897.38565272,0.00018333,2]
[328374540,1717278631957,-9576.46137373,0.00018333,2]
[328374541,1717278631967,-9888.9867811,0.00018334,2]
[328374542,1717278631976,-217.417724,0.00018658,2]
[328374543,1717278631986,-2120.4230784,0.000189,2]
[328374544,1717278631995,-162.84879519,0.00019,2]
[328374545,1717278632004,-400.6031707,0.00019178,7]
[328374546,1717278632013,-167.60519,0.00019178,2]
[328374547,1717278632022,-169.245469,0.00019626,2]
[328374548,1717278632032,-168.3263698,0.0002,2]
[328374549,1717278632041,-3628.36529927,0.0002,2]
[328374550,1717278632050,-33114.59978672,0.0002,2]
[328374551,1717278632060,-154.12405636,0.00020572,2]
[328374552,1717278632069,-1010.46135321,0.00020672,2]
[328374553,1717278632079,-921.27322734,0.00020772,2]
[328374554,1717278632089,-154.12405636,0.00020871,2]
[328374555,1717278632098,-8319.0,0.00021,2]
[328374556,1717278632107,-154.12405636,0.0002117,2]
[328374557,1717278632117,-154.12405636,0.00021468,2]
[328374558,1717278632127,-4230.52943513,0.00021499,2]
[328374559,1717278632137,-500.0,0.00021576,2]
[328374560,1717278632146,-500.0,0.00021576,2]
[328374561,1717278632155,-500.0,0.00021576,2]
[328374562,1717278632164,-500.0,0.00021576,2]
[328374563,1717278632173,-500.0,0.00021576,2]
[328374564,1717278632183,-500.0,0.00021576,2]
[328374565,1717278632286,-500.0,0.00021576,2]
[328374566,1717278632295,-500.0,0.00021576,2]
[328374567,1717278632305,-231.07472687,0.00021576,2]
[328374568,1717278632314,-500.0,0.00021576,2]
[328374569,1717278632323,-211.69668031,0.00021576,2]
[328374570,1717278632332,-500.0,0.00021576,2]
[328374571,1717278632342,-227.26620074,0.00021576,2]
[328374572,1717278632351,-500.0,0.00021576,2]
[328374573,1717278632360,-500.0,0.00021576,2]
[328374574,1717278632369,-1010.46135314,0.00021618,2]
[328374575,1717278632380,-154.12405636,0.00021767,2]
[328374576,1717278632389,-371.24,0.0002179,3]
[328374577,1717278632399,-30000.0,0.000218,6]
[328374578,1717278632408,-150.0,0.000218,2]
[328374579,1717278632417,-2110.18642515,0.00021843,2]
[328374580,1717278632427,-151.0,0.0002186,2]
[328374581,1717278632436,-151.0,0.0002186,2]
[328374582,1717278632445,-151.0,0.0002186,2]
[328374583,1717278632455,-151.0,0.0002186,2]
[328374584,1717278632464,-151.0,0.00021861,2]
[328374585,1717278632473,-151.0,0.00021861,2]
[328374586,1717278632482,-151.0,0.00021862,2]
[328374587,1717278632491,-151.0,0.00021862,2]
[328374588,1717278632500,-151.0,0.00021862,2]
[328374589,1717278632509,-151.0,0.00021862,2]
[328374590,1717278632519,-151.0,0.00021862,2]
[328374591,1717278632528,-151.0,0.00021863,2]
[328374592,1717278632537,-151.0,0.00021863,2]
[328374593,1717278632547,-151.0,0.00021863,2]
[328374594,1717278632556,-151.0,0.00021863,2]
[328374595,1717278632566,-184.51083339,0.00021865,2]
[328374596,1717278632575,-309.42126249,0.00021865,2]
[328374597,1717278632584,-881.41063361,0.00021865,2]
[328374598,1717278632593,-361.52069986,0.00021865,2]
[328374599,1717278632602,-156.6263305,0.00021865,2]
[328374600,1717278632611,-711.79397009,0.00021865,2]
[328374601,1717278632620,-1044.85540851,0.00021865,2]
[328374602,1717278632630,-289.41661622,0.00021865,2]
[328374603,1717278632639,-449.0682326,0.00021865,2]
[328374604,1717278632649,-155.27089779,0.00021865,2]
[328374605,1717278632658,-237.04613621,0.00021865,2]
[328374606,1717278632667,-155.18396789,0.00021865,2]
[328374607,1717278632677,-258.53055057,0.00021865,2]
[328374608,1717278632687,-151.0,0.00021865,2]
[328374609,1717278632696,-151.0,0.00021865,2]
[328374610,1717278632706,-249.14616,0.00021865,2]
[328374611,1717278632715,-151.0,0.00021865,2]
[328374612,1717278632724,-151.0,0.00021865,2]
[328374613,1717278632733,-151.0,0.00021865,2]
[328374614,1717278632742,-151.0,0.00021865,2]
[328374615,1717278632752,-151.0,0.00021865,2]
[328374616,1717278632761,-151.0,0.00021865,2]
[328374617,1717278632770,-151.0,0.00021865,2]
[328374618,1717278632779,-197.125999,0.00021865,2]
[328374619,1717278632788,-38150.32336585,0.00021866,2]
[328374620,1717278632797,-151.0,0.00021866,2]
[328374621,1717278632807,-151.0,0.00021866,2]
[328374622,1717278632816,-151.0,0.00021866,2]
[328374623,1717278632826,-265.060282,0.00021866,2]
[328374624,1717278632836,-151.0,0.00021866,2]
[328374625,1717278632845,-2035.47925153,0.00021867,7]
[328374626,1717278632854,-21289.50605008,0.00021867,2]
[328374627,1717278632864,-12833.99088915,0.00021867,2]
[328374628,1717278632876,-11076.90258158,0.00021867,2]
[328374629,1717278632885,-195.79569524,0.00021867,2]
[328374630,1717278632894,-155.02051107,0.00021867,2]
[328374631,1717278632903,-2117.69044916,0.00021867,2]
[328374632,1717278632912,-3066.73023231,0.00021867,2]
[328374633,1717278632921,-7396.44297937,0.00021867,2]
[328374635,1717278639248,-191.91846675,0.00021498,2]
[328374636,1717278639259,-500.0,0.00021859,2]
[328374637,1717278639269,-500.0,0.00021859,2]
[328374638,1717278639279,-429.32267866,0.00021859,2]
[328374639,1717278639288,-500.0,0.00021859,2]
[328374640,1717278639297,-500.0,0.00021859,2]
[328374641,1717278639307,-500.0,0.00021859,2]
[328374642,1717278639316,-500.0,0.00021859,2]
[328374643,1717278639326,-500.0,0.00021859,2]
[328374644,1717278639335,-550.0,0.00021859,2]
[328374645,1717278639344,-500.0,0.00021859,2]
[328374646,1717278639353,-500.0,0.00021859,2]
[328374647,1717278639362,-645.83494127,0.00021859,2]
[328374648,1717278639371,-500.0,0.00021859,2]
[328374649,1717278639381,-500.0,0.00021859,2]
[328374650,1717278639390,-400.00166839,0.00021859,2]
[328374651,1717278639407,-99.99833161,0.00021859,2]
[328374652,1717278639416,-500.0,0.00021859,2]
[328374653,1717278639426,-414.00489281,0.00021859,2]
[328374654,1717278641237,-324.76054633,0.00021498,2]
[328374655,1717278641249,-87.65019593,0.00021498,2]
[328374656,1717278641258,-85.99510719,0.00021859,2]
[328374657,1717278641268,-500.0,0.00021859,2]
[328374658,1717278641277,-1.36469688,0.00021859,2]
[328374659,1717278641289,-498.63530312,0.00021859,2]
[328374660,1717278641299,-500.0,0.00021859,2]
[328374661,1717278641308,-500.0,0.00021859,2]
[328374662,1717278641317,-321.88307646,0.00021859,2]
[328374663,1717278641326,-492.18448433,0.00021859,2]
[328374664,1717278641335,-500.0,0.00021859,2]
[328374665,1717278641345,-434.1983174,0.00021859,2]
[328374666,1717278641354,-500.0,0.00021859,2]
[328374667,1717278641363,-500.0,0.00021859,2]
[328374668,1717278641373,-458.65181742,0.00021859,2]
[328374669,1717278641382,-500.0,0.00021859,2]
[328374670,1717278641391,-585.65596363,0.00021859,2]
[328374671,1717278641400,-500.0,0.00021859,2]
[328374672,1717278641410,-500.0,0.00021859,2]
[328374673,1717278641419,-500.0,0.00021859,2]
[328374674,1717278641428,-500.0,0.00021859,2]
[328374675,1717278641437,-500.0,0.00021859,2]
[328374676,1717278641446,-440.14583202,0.00021867,7]
[328374677,1717278641456,-23875.28162705,0.00021867,2]
[328374690,1717278642856,-32.56798142,0.00021867,2]
[328374691,1717278642901,-3747.94659396,0.00021867,2]
[328374692,1717278642957,-24429.54226671,0.00021867,2]
[328374693,1717278642967,-921.98215006,0.00021867,2]
[328374694,1717278642977,-8096.41611414,0.00021867,2]
[328374695,1717278642987,-275.07948327,0.00021867,2]
[328374696,1717278642997,-155.13336705,0.00021867,2]
[328374697,1717278643007,-286.04727348,0.00021867,2]